[Event "Int SVK-ch Open 2020"]
[Site "Drienica"]
[Date "2020.08.10"]
[Round "4.8"]
[White "Ferkova, Dominika"]
[Black "Soldan, Jan"]
[Result "1-0"]
[ECO "D37"]
[WhiteElo "2088"]
[BlackElo "1782"]
[Annotator "ChessBase"]
[PlyCount "57"]
[EventDate "2020.08.07"]
[EventType "swiss"]
[EventCountry "SVK"]
[SourceTitle "playchess.com"]
[Source "ChessBase"]
[SourceQuality "1"]
[TimeControl "40/5400+30:1800+30"]

1. d4 {[%emt 0:00:00]} Nf6 {[%emt 0:00:39]} 2. c4 {[%emt 0:00:00]} e6 {[%emt 0:00:32]} 3. Nc3 {[%emt 0:00:00]} d5 {[%emt 0:00:18]} 4. Nf3 {[%emt 0:00:19]} Nc6 {[%emt 0:04:51]} 5. Bg5 {[%emt 0:02:22]} Be7 {[%emt 0:00:30]} 6. e3 {[%emt 0:00:15]} a6 {[%emt 0:00:54]} 7. a3 {[%emt 0:04:09]} O-O {[%emt 0:00:41]} 8. Bd3 {[%emt 0:02:35]} h6 {[%emt 0:02:01]} 9. Bh4 {[%emt 0:00:09]} Nh7 {[%emt 0:00:58]} 10. Bxe7 {[%emt 0:01:55]} Nxe7 {[%emt 0:00:14]} 11. O-O {[%emt 0:00:34]} b6 {[%emt 0:09:55]} 12. Rc1 {[%emt 0:05:04]} Bb7 {[%emt 0:01:35]} 13. cxd5 {[%emt 0:01:28]} Nxd5 {[%emt 0:00:43]} 14. Nxd5 {[%emt 0:00:12]} Bxd5 {[%emt 0:00:56]} 15. Qc2 {[%emt 0:05:35]} Ng5 {[%emt 0:00:25]} 16. Nd2 {[%emt 0:10:12]} Ra7 {[%emt 0:06:13]} 17. f4 {[%emt 0:02:35]} f5 {[%emt 0:01:28]} 18. fxg5 {[%emt 0:01:58]} Qxg5 {[%emt 0:00:08]} 19. e4 {[%emt 0:01:56]} Qe3+ {[%emt 0:03:00]} 20. Kh1 {[%emt 0:00:47]} fxe4 {[%emt 0:00:10]} 21. Bxe4 {[%emt 0:04:40]} Bxe4 {[%emt 0:00:31]} 22. Rxf8+ {[%emt 0:00:35]} Kxf8 {[%emt 0:00:06]} 23. Nxe4 {[%emt 0:00:07]} Qxd4 {[%emt 0:01:05]} 24. Rf1+ {[%emt 0:01:15]} Ke7 {[%emt 0:00:23]} 25. Ng3 {[%emt 0:01:39]} c5 {[%emt 0:00:16]} 26. Qe2 {[%emt 0:00:56]} g6 {[%emt 0:00:50]} 27. Qf3 {[%emt 0:00:26]} Qg7 {[%emt 0:05:42]} 28. b3 {[%emt 0:05:27]} Rc7 {[%emt 0:27:08]} 29. Qa8 {[%emt 0:01:57]} 1-0

[Event "Int SVK-ch Open 2020"]
[Site "Drienica"]
[Date "2020.08.10"]
[Round "4.9"]
[White "Bochnicka Vladimir"]
[Black "Majek, Kacper"]
[Result "0-1"]
[ECO "C54"]
[WhiteElo "2151"]
[BlackElo "1970"]
[Annotator "ChessBase"]
[PlyCount "62"]
[EventDate "2020.08.07"]
[EventType "swiss"]
[EventCountry "SVK"]
[SourceTitle "playchess.com"]
[Source "ChessBase"]
[SourceQuality "1"]
[TimeControl "40/5400+30:1800+30"]

1. e4 {[%emt 0:00:00]} e5 {[%emt 0:00:00]} 2. Nf3 {[%emt 0:00:05]} Nc6 {[%emt 0:00:12]} 3. Bc4 {[%emt 0:00:06]} Bc5 {[%emt 0:00:06]} 4. c3 {[%emt 0:00:05]} Nf6 {[%emt 0:00:11]} 5. d3 {[%emt 0:00:06]} O-O {[%emt 0:00:27]} 6. Nbd2 {[%emt 0:00:09]} d6 {[%emt 0:00:06]} 7. O-O {[%emt 0:00:40]} a5 {[%emt 0:00:20]} 8. a4 {[%emt 0:00:46]} Be6 {[%emt 0:00:55]} 9. Bb3 {[%emt 0:00:36]} Ba7 {[%emt 0:13:36]} 10. h3 {[%emt 0:01:52]} Qd7 {[%emt 0:04:03]} 11. Bc2 {[%emt 0:08:32]} Ne7 {[%emt 0:12:20]} 12. Ng5 {[%emt 0:01:00]} Ng6 {[%emt 0:00:33]} 13. Nxe6 {[%emt 0:00:17]} Qxe6 {[%emt 0:01:07]} 14. Nf3 {[%emt 0:01:04]} d5 {[%emt 0:08:40]} 15. Bb3 {[%emt 0:04:21]} Qc6 {[%emt 0:02:00]} 16. exd5 {[%emt 0:05:08]} Nxd5 {[%emt 0:00:11]} 17. d4 {[%emt 0:04:51]} Rad8 {[%emt 0:11:33]} 18. c4 {[%emt 0:10:17]} Ndf4 {[%emt 0:01:44]} 19. d5 {[%emt 0:00:21]} Qf6 {[%emt 0:05:29]} 20. Be3 {[%emt 0:02:45]} e4 {[%emt 0:07:49]} 21. Ne1 {[%emt 0:27:07]} Bxe3 {[%emt 0:02:03]} 22. fxe3 {[%emt 0:00:16]} Qb6 {[%emt 0:00:03]} 23. Kf2 {[%emt 0:12:35]} Ne5 {[%emt 0:00:33]} 24. Qc2 {[%emt 0:02:59]} Nfd3+ {[%emt 0:01:45]} 25. Nxd3 {[%emt 0:01:20]} Nxd3+ {[%emt 0:00:11]} 26. Ke2 {[%emt 0:00:17]} c6 {[%emt 0:01:53]} 27. Rf5 {[%emt 0:02:17]} cxd5 {[%emt 0:01:48]} 28. Rxd5 {[%emt 0:00:10]} Nb4 {[%emt 0:00:17]} 29. Qc3 {[%emt 0:02:24]} Nxd5 {[%emt 0:00:06]} 30. cxd5 {[%emt 0:00:05]} Rc8 {[%emt 0:00:18]} 31. Bc4 {[%emt 0:00:24]} Rxc4 {[%emt 0:00:05]} 0-1

[Event "Int SVK-ch Open 2020"]
[Site "Drienica"]
[Date "2020.08.10"]
[Round "4.9"]
[White "Kukan, Michal"]
[Black "Hudak, Vasil"]
[Result "0-1"]
[ECO "A35"]
[WhiteElo "1760"]
[BlackElo "1984"]
[Annotator "ChessBase"]
[PlyCount "80"]
[EventDate "2020.08.07"]
[EventType "swiss"]
[EventCountry "SVK"]
[SourceTitle "playchess.com"]
[Source "ChessBase"]
[SourceQuality "1"]
[TimeControl "40/5400+30:1800+30"]

1. c4 {[%emt 0:00:00]} Nf6 {[%emt 0:00:00]} 2. Nc3 {[%emt 0:00:00]} c5 {[%emt 0:00:03]} 3. Nf3 {[%emt 0:00:31]} Nc6 {[%emt 0:00:47]} 4. d4 {[%emt 0:00:20]} cxd4 {[%emt 0:00:51]} 5. Nxd4 {[%emt 0:00:12]} g6 {[%emt 0:00:15]} 6. e4 {[%emt 0:00:36]} d6 {[%emt 0:04:17]} 7. Be2 {[%emt 0:01:36]} Bg7 {[%emt 0:01:51]} 8. Be3 {[%emt 0:00:52]} O-O {[%emt 0:00:44]} 9. O-O {[%emt 0:00:16]} Bd7 {[%emt 0:01:02]} 10. Rc1 {[%emt 0:01:09]} Rc8 {[%emt 0:05:29]} 11. b3 {[%emt 0:05:46]} b6 {[%emt 0:08:25]} 12. f3 {[%emt 0:04:00]} Na5 {[%emt 0:03:06]} 13. Qd2 {[%emt 0:02:34]} Nb7 {[%emt 0:02:03]} 14. Rfd1 {[%emt 0:03:01]} Nc5 {[%emt 0:00:57]} 15. Ncb5 {[%emt 0:08:35]} a6 {[%emt 0:00:35]} 16. Nc3 {[%emt 0:01:12]} Be8 {[%emt 0:00:37]} 17. Bh6 {[%emt 0:03:20]} Nfd7 {[%emt 0:00:45]} 18. Bxg7 {[%emt 0:01:58]} Kxg7 {[%emt 0:00:06]} 19. f4 {[%emt 0:01:54]} Kg8 {[%emt 0:13:25]} 20. Bg4 {[%emt 0:02:52]} e6 {[%emt 0:00:52]} 21. Nf3 {[%emt 0:09:24]} Nf6 {[%emt 0:00:15]} 22. Bh3 {[%emt 0:07:39]} Nfxe4 {[%emt 0:00:17]} 23. Nxe4 {[%emt 0:00:55]} Nxe4 {[%emt 0:00:06]} 24. Qe3 {[%emt 0:03:46]} Bc6 {[%emt 0:01:14]} 25. Nd4 {[%emt 0:01:58]} Qc7 {[%emt 0:00:27]} 26. Nxe6 {[%emt 0:02:47]} fxe6 {[%emt 0:00:18]} 27. Bxe6+ {[%emt 0:00:13]} Kg7 {[%emt 0:00:25]} 28. Bxc8 {[%emt 0:00:44]} Qxc8 {[%emt 0:01:08]} 29. Qd4+ {[%emt 0:04:01]} Kg8 {[%emt 0:00:25]} 30. Qxb6 {[%emt 0:04:07]} Rxf4 {[%emt 0:01:24]} 31. c5 {[%emt 0:03:20]} d5 {[%emt 0:01:13]} 32. Rc4 {[%emt 0:04:54]} Rf8 {[%emt 0:01:36]} 33. Rc2 {[%emt 0:02:58]} Rf6 {[%emt 0:01:57]} 34. Qa5 {[%emt 0:02:26]} Qg4 {[%emt 0:01:31]} 35. Re1 {[%emt 0:03:07]} Qc8 {[%emt 0:04:10]} 36. Rce2 {[%emt 0:02:07]} Bb5 {[%emt 0:00:25]} 37. Rc2 {[%emt 0:02:33]} Qf5 {[%emt 0:01:03]} 38. h3 {[%emt 0:01:00]} Ng3 {[%emt 0:01:14]} 39. Qd2 {[%emt 0:02:30]} Ne4 {[%emt 0:00:44]} 40. a4 {[%emt 0:00:59]} Nxd2 {[%emt 0:00:04]} 0-1

[Event "Int SVK-ch Open 2020"]
[Site "Drienica"]
[Date "2020.08.10"]
[Round "4.10"]
[White "Macko Michal"]
[Black "Garancovsky, Pavol"]
[Result "1-0"]
[ECO "B23"]
[WhiteElo "2142"]
[BlackElo "2025"]
[Annotator "ChessBase"]
[PlyCount "79"]
[EventDate "2020.08.07"]
[EventType "swiss"]
[EventCountry "SVK"]
[SourceTitle "playchess.com"]
[Source "ChessBase"]
[SourceQuality "1"]
[TimeControl "40/5400+30:1800+30"]

1. e4 {[%emt 0:00:18]} c5 {[%emt 0:09:32]} 2. Nc3 {[%emt 0:00:10]} Nc6 {[%emt 0:00:27]} 3. Bb5 {[%emt 0:00:06]} Nd4 {[%emt 0:00:29]} 4. Bc4 {[%emt 0:00:04]} e6 {[%emt 0:00:16]} 5. Nge2 {[%emt 0:00:12]} a6 {[%emt 0:00:53]} 6. d3 {[%emt 0:00:17]} b5 {[%emt 0:00:54]} 7. Bb3 {[%emt 0:00:05]} Nxb3 {[%emt 0:01:14]} 8. axb3 {[%emt 0:00:03]} Bb7 {[%emt 0:00:09]} 9. O-O {[%emt 0:00:04]} d5 {[%emt 0:13:30]} 10. exd5 {[%emt 0:00:46]} exd5 {[%emt 0:00:56]} 11. d4 {[%emt 0:00:21]} Nf6 {[%emt 0:01:17]} 12. Ng3 {[%emt 0:00:22]} Qd7 {[%emt 0:06:15]} 13. Re1+ {[%emt 0:01:40]} Be7 {[%emt 0:01:13]} 14. dxc5 {[%emt 0:01:26]} O-O {[%emt 0:04:39]} 15. Qd4 {[%emt 0:00:20]} Rac8 {[%emt 0:02:19]} 16. b4 {[%emt 0:00:16]} Ne8 {[%emt 0:03:52]} 17. Bf4 {[%emt 0:01:11]} g5 {[%emt 0:00:40]} 18. Nf5 {[%emt 0:06:28]} Bf6 {[%emt 0:02:44]} 19. Nh6+ {[%emt 0:00:10]} Kg7 {[%emt 0:09:56]} 20. Be5 {[%emt 0:00:07]} Bxe5 {[%emt 0:00:37]} 21. Rxe5 {[%emt 0:00:08]} Kxh6 {[%emt 0:00:58]} 22. Rae1 {[%emt 0:00:55]} Nc7 {[%emt 0:13:04]} 23. h4 {[%emt 0:01:09]} Ne6 {[%emt 0:00:20]} 24. Qg4 {[%emt 0:00:36]} Kg7 {[%emt 0:01:30]} 25. Rxg5+ {[%emt 0:00:46]} Kh8 {[%emt 0:00:49]} 26. Rh5 {[%emt 0:07:11]} Rg8 {[%emt 0:05:17]} 27. Qf5 {[%emt 0:01:00]} Rg6 {[%emt 0:00:39]} 28. Ne2 {[%emt 0:04:20]} Nxc5 {[%emt 0:08:02]} 29. bxc5 {[%emt 0:00:11]} Qxf5 {[%emt 0:00:58]} 30. Rxf5 {[%emt 0:00:03]} Rxc5 {[%emt 0:00:26]} 31. Nd4 {[%emt 0:00:15]} Rc7 {[%emt 0:05:51]} 32. h5 {[%emt 0:02:17]} Rg4 {[%emt 0:00:30]} 33. h6 {[%emt 0:03:04]} Re4 {[%emt 0:01:28]} 34. Re5 {[%emt 0:00:05]} Rc8 {[%emt 0:01:03]} 35. f3 {[%emt 0:00:34]} f6 {[%emt 0:01:13]} 36. Re7 {[%emt 0:00:18]} Rxe1+ {[%emt 0:00:05]} 37. Rxe1 {[%emt 0:00:03]} Kg8 {[%emt 0:00:19]} 38. Re7 {[%emt 0:00:14]} Rc4 {[%emt 0:00:39]} 39. Rg7+ {[%emt 0:01:04]} Kh8 {[%emt 0:00:15]} 40. Rxb7 {[%emt 0:00:07]} 1-0

[Event "Int SVK-ch Open 2020"]
[Site "Drienica"]
[Date "2020.08.10"]
[Round "4.11"]
[White "Belis, Rudolf"]
[Black "Sevcik, Lubomir"]
[Result "1-0"]
[ECO "D06"]
[WhiteElo "1924"]
[BlackElo "1748"]
[Annotator "ChessBase"]
[PlyCount "71"]
[EventDate "2020.08.07"]
[EventType "swiss"]
[EventCountry "SVK"]
[SourceTitle "playchess.com"]
[Source "ChessBase"]
[SourceQuality "1"]
[TimeControl "40/5400+30:1800+30"]

1. d4 {[%emt 0:00:00]} d5 {[%emt 0:00:00]} 2. c4 {[%emt 0:00:00]} Nf6 {[%emt 0:00:00]} 3. cxd5 {[%emt 0:00:00]} Nxd5 {[%emt 0:01:21]} 4. Nf3 {[%emt 0:00:00]} c6 {[%emt 0:01:36]} 5. e4 {[%emt 0:00:05]} Nf6 {[%emt 0:00:18]} 6. Nc3 {[%emt 0:00:04]} Bg4 {[%emt 0:00:39]} 7. Bg5 {[%emt 0:07:22]} Qa5 {[%emt 0:02:41]} 8. Qd2 {[%emt 0:02:20]} Bxf3 {[%emt 0:02:09]} 9. gxf3 {[%emt 0:00:16]} Nbd7 {[%emt 0:03:45]} 10. Bc4 {[%emt 0:05:48]} e6 {[%emt 0:03:07]} 11. O-O-O {[%emt 0:01:25]} h6 {[%emt 0:05:02]} 12. Bf4 {[%emt 0:02:30]} Nh5 {[%emt 0:05:09]} 13. Be3 {[%emt 0:01:05]} Bd6 {[%emt 0:04:04]} 14. Kb1 {[%emt 0:01:39]} Qc7 {[%emt 0:03:05]} 15. Bb3 {[%emt 0:03:12]} Nb6 {[%emt 0:04:11]} 16. Rc1 {[%emt 0:03:16]} Bf4 {[%emt 0:08:19]} 17. Nb5 {[%emt 0:11:26]} Qb8 {[%emt 0:02:00]} 18. Bxf4 {[%emt 0:00:46]} Nxf4 {[%emt 0:00:29]} 19. e5 {[%emt 0:00:37]} g5 {[%emt 0:06:15]} 20. Nd6+ {[%emt 0:00:08]} Ke7 {[%emt 0:00:14]} 21. h4 {[%emt 0:00:44]} Qc7 {[%emt 0:03:36]} 22. Nb5 {[%emt 0:07:24]} Qd8 {[%emt 0:04:34]} 23. hxg5 {[%emt 0:02:40]} Nbd5 {[%emt 0:02:02]} 24. Bxd5 {[%emt 0:01:43]} Nxd5 {[%emt 0:03:05]} 25. Nd6 {[%emt 0:01:35]} h5 {[%emt 0:02:41]} 26. f4 {[%emt 0:03:14]} Qb6 {[%emt 0:02:17]} 27. Rh3 {[%emt 0:01:26]} Qa6 {[%emt 0:03:41]} 28. Ra3 {[%emt 0:00:48]} Qb6 {[%emt 0:08:54]} 29. Rb3 {[%emt 0:00:12]} Qxb3 {[%emt 0:00:50]} 30. axb3 {[%emt 0:00:07]} h4 {[%emt 0:00:15]} 31. f5 {[%emt 0:02:36]} exf5 {[%emt 0:05:03]} 32. Nxf5+ {[%emt 0:00:26]} Kd7 {[%emt 0:01:07]} 33. Nd6 {[%emt 0:00:28]} h3 {[%emt 0:01:29]} 34. Rh1 {[%emt 0:01:12]} h2 {[%emt 0:00:39]} 35. f4 {[%emt 0:00:09]} Rh3 {[%emt 0:00:26]} 36. Rxh2 {[%emt 0:00:07]} 1-0

[Event "Int SVK-ch Open 2020"]
[Site "Drienica"]
[Date "2020.08.10"]
[Round "4.12"]
[White "Lehocz, Jozsef Jr."]
[Black "Bakalar, Jan"]
[Result "1/2-1/2"]
[ECO "C42"]
[WhiteElo "1596"]
[BlackElo "1900"]
[Annotator "ChessBase"]
[PlyCount "44"]
[EventDate "2020.08.07"]
[EventType "swiss"]
[EventCountry "SVK"]
[SourceTitle "playchess.com"]
[Source "ChessBase"]
[SourceQuality "1"]
[TimeControl "40/5400+30:1800+30"]

1. e4 e5 2. Bc4 Nf6 3. Nf3 Bc5 4. d3 d6 5. h3 c6 6. Nc3 b5 7. Bb3 a5 8. a3 Qe7 9. Bg5 a4 10. Ba2 Be6 11. d4 exd4 12. Nxd4 h6 13. Nxe6 fxe6 14. Bh4 g5 15. Bg3 e5 16. Qf3 Nbd7 17. Qf5 O-O-O 18. h4 Nh5 19. Qg4 Nhf6 20. Qf5 Nh5 21. Qg4 Nhf6 22. Qf5 Nh5 1/2-1/2

[Event "Int SVK-ch Open 2020"]
[Site "Drienica"]
[Date "2020.08.10"]
[Round "4.13"]
[White "Marsina, Stefan"]
[Black "Ganzova, Veronika"]
[Result "0-1"]
[ECO "A48"]
[WhiteElo "1829"]
[BlackElo "1614"]
[Annotator "NA"]
[PlyCount "66"]
[EventDate "2020.08.07"]
[EventType "swiss"]
[EventCountry "SVK"]
[SourceTitle "playchess.com"]
[Source "ChessBase"]
[SourceQuality "1"]
[TimeControl "40/5400+30:1800+30"]

1. d4 {[%emt 0:00:00]} Nf6 {[%emt 0:00:00]} 2. Nf3 {[%emt 0:00:00]} g6 {[%emt 0:00:07]} 3. c4 {[%emt 0:00:45]} Bg7 {[%emt 0:00:59]} 4. Nc3 {[%emt 0:00:39]} d6 {[%emt 0:00:16]} 5. e4 {[%emt 0:04:02]} O-O {[%emt 0:00:20]} 6. h3 {[%emt 0:18:01]} e5 {[%emt 0:03:32]} 7. d5 {[%emt 0:02:26]} Nbd7 {[%emt 0:01:25]} 8. Be3 {[%emt 0:07:02]} Ne8 {[%emt 0:05:49]} 9. Qc2 {[%emt 0:18:48] [#] E90: King's Indian: Classical: Early deviations and 6 h3.} Nb6 $146 {[%emt 0:05:37]} ({Predecessor:} 9... b6 10. g4 a5 11. O-O-O Nc5 12. g5 Bh8 13. Be2 Ng7 14. Nh2 Nh5 15. Bxh5 gxh5 16. Qe2 Ba6 17. Qxh5 Bxc4 {1-0 (36) Meulner,F (2066)-Grunert,F (1778) Willingen 2017}) 10. b4 {[%emt 0:11:05]} a5 {[%emt 0:03:46]} 11. bxa5 {[%emt 0:11:31]} Rxa5 {[%emt 0:01:18]} 12. Bd3 {[%emt 0:01:44]} c6 {[%emt 0:06:26]} 13. Rb1 {[%emt 0:02:32]} Nd7 {[%emt 0:01:26]} 14. dxc6 {[%emt 0:01:38]} bxc6 {[%emt 0:00:40]} 15. O-O {[%emt 0:00:31]} Nc5 {[%emt 0:00:48]} 16. Rfd1 {[%emt 0:01:27]} f5 {[%emt 0:02:50]} 17. Nd2 {[%emt 0:02:50]} f4 {[%emt 0:02:59]} 18. Bxc5 {[%emt 0:00:18]} Rxc5 {[%emt 0:00:39]} 19. Nb3 {[%emt 0:00:30]} f3 {[%emt 0:07:54]} 20. g3 {[%emt 0:06:01]} Bxh3 {[%emt 0:01:19]} 21. Nxc5 {[%emt 0:02:28]} Qg5 {[%emt 0:05:01]} 22. Bf1 {[%emt 0:00:50] [#]} Qh5 $1 {[%emt 0:06:01]} 23. Nd3 {[%emt 0:00:32]} Nf6 {[%emt 0:07:21]} 24. Ne1 {[%emt 0:05:07]} Bxf1 {[%emt 0:05:18]} (24... Ng4 $17 25. Nxf3 Rxf3) 25. Nxf3 {[%emt 0:00:20] [#]} ({Avoid the trap} 25. Rxd6 $2 Ng4 $19 26. Nxf3 Rxf3 $19) 25... Qh3 $1 {[%emt 0:00:18]} 26. Ne1 $2 {[%emt 0:00:21]} (26. Rxf1 $15 Ng4 27. Rb8 Rxb8 28. Rd1) 26... Ng4 {[%emt 0:03:37]} 27. f3 {[%emt 0:00:51]} Qxg3+ {[%emt 0:01:11]} 28. Kxf1 {[%emt 0:00:23]} Ne3+ $19 {[%emt 0:00:07] Double Attack} 29. Ke2 {[%emt 0:00:24]} Nxc2 {[%emt 0:00:04]} 30. Nxc2 {[%emt 0:01:02]} Qxf3+ {[%emt 0:00:21]} 31. Kd2 {[%emt 0:00:38]} Bh6+ {[%emt 0:00:14]} 32. Ne3 {[%emt 0:00:39]} Qf2+ {[%emt 0:02:12]} 33. Kd3 {[%emt 0:00:24]} Qxe3+ {[%emt 0:00:18]} 0-1

[Event "Int SVK-ch Open 2020"]
[Site "Drienica"]
[Date "2020.08.10"]
[Round "4.14"]
[White "Ondo Tomas"]
[Black "Antal, Jakub"]
[Result "1/2-1/2"]
[ECO "B04"]
[WhiteElo "2065"]
[BlackElo "1918"]
[Annotator "ChessBase"]
[PlyCount "48"]
[EventDate "2020.08.07"]
[EventType "swiss"]
[EventCountry "SVK"]
[SourceTitle "playchess.com"]
[Source "ChessBase"]
[SourceQuality "1"]
[TimeControl "40/5400+30:1800+30"]

1. e4 {[%emt 0:00:00]} Nf6 {[%emt 0:00:50]} 2. e5 {[%emt 0:00:00]} Nd5 {[%emt 0:00:05]} 3. d4 {[%emt 0:00:00]} d6 {[%emt 0:00:11]} 4. Nf3 {[%emt 0:00:05]} g6 {[%emt 0:00:38]} 5. Bc4 {[%emt 0:00:41]} Nb6 {[%emt 0:00:50]} 6. Bb3 {[%emt 0:00:19]} Bg7 {[%emt 0:01:58]} 7. Qe2 {[%emt 0:01:35]} O-O {[%emt 0:00:39]} 8. h3 {[%emt 0:02:25]} dxe5 {[%emt 0:00:27]} 9. dxe5 {[%emt 0:01:06]} c5 {[%emt 0:00:09]} 10. O-O {[%emt 0:12:41]} Nc6 {[%emt 0:00:40]} 11. c3 {[%emt 0:04:07]} Bf5 {[%emt 0:03:13]} 12. Rd1 {[%emt 0:07:46]} Qc8 {[%emt 0:01:20]} 13. Bf4 {[%emt 0:07:35]} Be6 {[%emt 0:18:56]} 14. Na3 {[%emt 0:11:28]} Bxb3 {[%emt 0:07:33]} 15. axb3 {[%emt 0:00:07]} Qf5 {[%emt 0:06:16]} 16. Bg3 {[%emt 0:06:54]} Rfd8 {[%emt 0:02:54]} 17. Nc4 {[%emt 0:08:37]} Nd5 {[%emt 0:06:14]} 18. Ne3 {[%emt 0:08:08]} Nxe3 {[%emt 0:00:37]} 19. Qxe3 {[%emt 0:00:26]} b6 {[%emt 0:05:33]} 20. e6 {[%emt 0:11:50]} fxe6 {[%emt 0:06:35]} 21. Re1 {[%emt 0:00:27]} e5 {[%emt 0:06:25]} 22. Nxe5 {[%emt 0:00:57]} Nxe5 {[%emt 0:00:29]} 23. Bxe5 {[%emt 0:00:10]} Bxe5 {[%emt 0:00:43]} 24. Qxe5 {[%emt 0:00:03]} Qxe5 {[%emt 0:05:55]} 1/2-1/2

[Event "Int SVK-ch Open 2020"]
[Site "Drienica"]
[Date "2020.08.10"]
[Round "4.14"]
[White "Furman, Maximilian Jan"]
[Black "Nandrazi, Dominik"]
[Result "1-0"]
[ECO "B06"]
[WhiteElo "1610"]
[BlackElo "1883"]
[Annotator "NA"]
[PlyCount "89"]
[EventDate "2020.08.07"]
[EventType "swiss"]
[EventCountry "SVK"]
[SourceTitle "playchess.com"]
[Source "ChessBase"]
[SourceQuality "1"]
[TimeControl "40/5400+30:1800+30"]

1. e4 {[%emt 0:00:00]} g6 {[%emt 0:00:02]} 2. d4 {[%emt 0:00:00]} d6 {[%emt 0:02:56]} 3. Nc3 {[%emt 0:00:30]} Bg7 {[%emt 0:00:12]} 4. Be3 {[%emt 0:01:46]} c6 {[%emt 0:01:45]} 5. Bd3 {[%emt 0:04:42]} b5 {[%emt 0:01:31]} 6. f4 {[%emt 0:07:54]} b4 {[%emt 0:02:19] B06: Modern Defence.} 7. Nce2 {[%emt 0:01:32]} Nf6 {[%emt 0:00:57]} 8. h3 {[%emt 0:00:24]} Ba6 {[%emt 0:00:29]} (8... c5 $11) 9. Nf3 {[%emt 0:03:03]} Bxd3 {[%emt 0:02:10]} 10. Qxd3 {[%emt 0:00:08] [#]} Nbd7 $146 {[%emt 0:02:30]} ({Predecessor:} 10... Qa5 11. O-O Nbd7 12. Bd2 Qb6 13. e5 dxe5 14. fxe5 Nd5 15. e6 fxe6 16. Ng5 Nc7 {½-½ (38) Vrana,J (2306)-Mackowiak,M (2236) Olomouc 2011}) 11. Ng3 {[%emt 0:04:19]} Qa5 {[%emt 0:02:29]} 12. O-O {[%emt 0:10:01]} O-O {[%emt 0:03:22]} 13. Bd2 {[%emt 0:03:48]} Qb6 {[%emt 0:00:11]} 14. Be3 {[%emt 0:03:03]} c5 {[%emt 0:00:52]} 15. e5 {[%emt 0:04:22]} Ne8 {[%emt 0:02:28]} 16. dxc5 {[%emt 0:05:34]} Nxc5 {[%emt 0:00:25]} 17. Qc4 {[%emt 0:12:32]} Rc8 {[%emt 0:13:42]} 18. Rfe1 {[%emt 0:02:53]} Nc7 {[%emt 0:10:22]} (18... Qb8 $11 {keeps the balance.}) 19. a3 {[%emt 0:08:00]} (19. f5 $16) 19... bxa3 {[%emt 0:04:34]} 20. Rxa3 {[%emt 0:03:40]} Nb5 {[%emt 0:07:25]} 21. Ra2 {[%emt 0:04:25]} Qb7 {[%emt 0:00:36]} 22. Ra5 {[%emt 0:02:50]} a6 {[%emt 0:00:23]} 23. Qb4 {[%emt 0:00:56]} Rc6 {[%emt 0:06:14]} 24. Bxc5 {[%emt 0:02:02]} dxc5 {[%emt 0:00:19]} 25. Qc4 {[%emt 0:00:12]} Rd8 {[%emt 0:00:26]} 26. Qb3 {[%emt 0:02:43]} Qb6 {[%emt 0:00:40]} 27. Ra4 {[%emt 0:02:30]} Rd1 {[%emt 0:04:10]} ({Black should try} 27... Bh6 $15 28. Rc4 Nd4 29. Nxd4 Rxd4) 28. Qe3 {[%emt 0:01:57]} (28. Qc4 $5 {[%cal Re1d1]} Rd8 29. Rea1 $14) 28... Rxe1+ {[%emt 0:00:15]} 29. Nxe1 {[%emt 0:01:23]} Nd4 {[%emt 0:01:07]} 30. c3 {[%emt 0:01:04]} Qb5 {[%emt 0:00:58]} 31. Ra3 {[%emt 0:01:14]} Ne6 {[%emt 0:01:46]} 32. Nd3 {[%emt 0:01:28]} (32. b3 $1 $11 {keeps the balance.}) 32... Bh6 {[%emt 0:00:19]} 33. Qe4 {[%emt 0:01:56]} Rc8 $2 {[%emt 0:01:07]} (33... c4 $19 34. Nb4 Rc5 35. Qa8+ Nf8 36. Rxa6 Bxf4 {[%mdl 64] Double Attack}) 34. c4 {[%emt 0:00:55]} Qb6 {[%emt 0:00:38]} 35. f5 {[%emt 0:00:36]} Nd4 {[%emt 0:00:30] [#]} 36. Qh4 {[%emt 0:00:53]} (36. e6 $1 $16 {[%cal Re6f7][%mdl 512]} Bg7 (36... fxe6 37. fxg6) 37. exf7+ Kxf7 38. Qd5+ Kf8 39. fxg6 hxg6 40. Ne4) 36... Be3+ {[%emt 0:00:51]} 37. Kh2 {[%emt 0:00:29]} g5 $2 {[%emt 0:01:56]} (37... gxf5 $11 38. Nf1 Qh6 39. Qxe7 Rc6) 38. Qe4 {[%emt 0:00:29]} Nc2 $18 {[%emt 0:01:44]} (38... Bf4 39. Nxf4 gxf4) 39. Rc3 {[%emt 0:00:42]} Bd4 {[%emt 0:11:53]} 40. Rxc2 {[%emt 0:00:13]} Qb3 {[%emt 0:00:03]} 41. Nc1 {[%emt 0:31:36]} Bg1+ {[%emt 0:30:34]} 42. Kxg1 {[%emt 0:00:59]} Qxg3 {[%emt 0:00:02]} 43. Rc3 {[%emt 0:01:06]} Qf4 {[%emt 0:00:26]} 44. Qxf4 {[%emt 0:00:06]} gxf4 {[%emt 0:00:01]} 45. Nd3 {[%emt 0:00:56]} 1-0

[Event "Int SVK-ch Open 2020"]
[Site "Drienica"]
[Date "2020.08.10"]
[Round "4.15"]
[White "Zahradnik, Vladimir"]
[Black "Dragula, Miroslav"]
[Result "1-0"]
[ECO "C07"]
[WhiteElo "1875"]
[BlackElo "1571"]
[Annotator "NA"]
[PlyCount "49"]
[EventDate "2020.08.07"]
[EventType "swiss"]
[EventCountry "SVK"]
[SourceTitle "playchess.com"]
[Source "ChessBase"]
[SourceQuality "1"]
[TimeControl "40/5400+30:1800+30"]

1. e4 {[%emt 0:00:00]} e6 {[%emt 0:00:00]} 2. d4 {[%emt 0:00:08]} d5 {[%emt 0:00:00]} 3. Nd2 {[%emt 0:00:14]} c5 {[%emt 0:00:09]} 4. exd5 {[%emt 0:00:26]} Qxd5 {[%emt 0:00:16]} 5. Ngf3 {[%emt 0:02:30]} Nf6 {[%emt 0:00:50]} 6. Bc4 {[%emt 0:00:37]} Qh5 {[%emt 0:00:38]} 7. c3 {[%emt 0:02:58]} cxd4 {[%emt 0:00:43]} 8. cxd4 {[%emt 0:00:05]} Be7 {[%emt 0:00:34]} 9. O-O {[%emt 0:00:17]} O-O {[%emt 0:00:11]} 10. Re1 {[%emt 0:02:02]} Nc6 {[%emt 0:00:01]} 11. Ne4 {[%emt 0:02:05]} h6 {[%emt 0:00:30]} 12. Ng3 {[%emt 0:01:45]} Qa5 {[%emt 0:00:00]} 13. a3 {[%emt 0:00:39]} a6 {[%emt 0:01:26]} 14. Bd2 {[%emt 0:00:39]} Qd8 {[%emt 0:00:13]} 15. Bc3 {[%emt 0:02:29]} b5 {[%emt 0:00:40]} 16. Bd3 {[%emt 0:01:03]} Bb7 {[%emt 0:00:54]} 17. Ne5 {[%emt 0:04:04]} Qd5 {[%emt 0:03:47]} 18. Ne4 {[%emt 0:00:59]} b4 {[%emt 0:06:11]} 19. Bc4 {[%emt 0:01:32]} Qd8 {[%emt 0:01:02]} 20. Nxf6+ {[%emt 0:00:24]} gxf6 {[%emt 0:04:32]} 21. Nxc6 {[%emt 0:00:19]} Bxc6 {[%emt 0:00:22]} 22. axb4 {[%emt 0:00:06]} Bb5 {[%emt 0:00:49]} 23. Bxb5 {[%emt 0:07:53]} axb5 {[%emt 0:00:12]} 24. Qh5 {[%emt 0:00:15]} Qd5 {[%emt 0:01:40]} 25. Qxd5 {[%emt 0:00:36]} 1-0